fUSD/lending_fUSD_20250609
["ID","MTS","AMOUNT","RATE_DAILY","PERIOD"]
[365077746,1749444646230,-480.0,0.00019216,2]
[365077748,1749444646239,-633.03,0.00019216,2]
[365077750,1749444646248,-531.98297419,0.00019216,2]
[365077752,1749444646258,-405.07178849,0.00019216,2]
[365077754,1749444646268,-369.22848779,0.00019216,2]
[365077756,1749444646277,-480.0,0.00019216,2]
[365077758,1749444646285,-480.0,0.00019216,2]
[365077760,1749444646294,-558.33138815,0.00019216,2]
[365077761,1749444646302,-834.1,0.00019216,2]
[365077763,1749444646311,-480.0,0.00019216,2]
[365077765,1749444646320,-1108.77,0.00019216,2]
[365077767,1749444646328,-480.0,0.00019216,2]
[365077769,1749444646336,-480.0,0.00019216,2]
[365077771,1749444646345,-480.0,0.00019216,2]
[365077773,1749444646354,-1494.67,0.00019216,2]
[365077775,1749444646363,-480.0,0.00019216,2]
[365077777,1749444646372,-480.0,0.00019216,2]
[365077779,1749444646381,-480.0,0.00019216,2]
[365077781,1749444646390,-480.0,0.00019216,2]
[365077783,1749444646399,-480.0,0.00019216,2]
[365077785,1749444646408,-715.21,0.00019216,2]
[365077787,1749444646417,-480.0,0.00019216,2]
[365077789,1749444646426,-535.95,0.00019216,2]
[365077791,1749444646435,-1398.45,0.00019216,2]
[365077793,1749444646445,-480.0,0.00019216,2]
[365077795,1749444646458,-480.0,0.00019216,2]
[365077797,1749444646467,-171.76458571,0.00019216,2]
[365077802,1749444646505,-308.23541429,0.00019216,2]
[365077804,1749444646514,-480.0,0.00019216,2]
[365077806,1749444646523,-480.0,0.00019216,2]
[365077808,1749444646533,-480.0,0.00019216,2]
[365077810,1749444646543,-128.10092021,0.00019216,2]
[365077812,1749444646554,-351.89907979,0.00019216,2]
[365077814,1749444646563,-480.0,0.00019216,2]
[365077816,1749444646572,-480.0,0.00019216,2]
[365077818,1749444646581,-489.13,0.00019216,2]
[365077819,1749444646590,-363.18611221,0.00019216,2]
[365077822,1749444646601,-116.81388779,0.00019216,2]
[365077823,1749444646610,-713.68,0.00019216,2]
[365077825,1749444646619,-480.0,0.00019216,2]
[365077827,1749444646628,-98.02672263,0.00019216,2]
[365077830,1749444646639,-239.140747,0.00019216,2]
[365077832,1749444646649,-480.0,0.00019216,2]
[365077834,1749444646658,-480.0,0.00019216,2]
[365077835,1749444646667,-92.37326962,0.00019216,2]
[365077843,1749444646823,-460.0,0.00018951,2]
[365077845,1749444646832,-460.0,0.00018951,2]
[365077846,1749444646841,-460.0,0.00018951,2]
[365077848,1749444646852,-516.13,0.00018951,2]
[365077850,1749444646861,-161.45013076,0.00019063,2]
[365077852,1749444646871,-387.62673038,0.00019216,2]
[365077854,1749444646881,-486.54,0.00019216,2]
[365077856,1749444646890,-480.0,0.00019216,2]
[365077858,1749444646901,-480.0,0.00019216,2]
[365077860,1749444646910,-480.0,0.00019216,2]
[365077862,1749444646919,-517.52,0.00019216,2]
[365077864,1749444646928,-480.87153919,0.00019216,2]
[365077866,1749444646938,-615.88,0.00019216,2]
[365077868,1749444646947,-480.0,0.00019216,2]
[365077870,1749444646956,-480.0,0.00019216,2]
[365077872,1749444646965,-606.81,0.00019216,2]
[365077874,1749444646975,-653.2,0.00019216,2]
[365077876,1749444646984,-480.0,0.00019216,2]
[365077878,1749444646993,-480.0,0.00019216,2]
[365077880,1749444647003,-480.0,0.00019216,2]
[365077882,1749444647013,-480.0,0.00019216,2]
[365077884,1749444647022,-150.0,0.0001922,2]
[365077885,1749444647031,-150.0,0.0001922,2]
[365077887,1749444647040,-150.0,0.00019223,2]
[365077889,1749444647050,-150.0,0.00019229,2]
[365077891,1749444647058,-4275.62549118,0.00019233,2]
[365077893,1749444647070,-5219.83778731,0.00019233,2]
[365077896,1749444647081,-4023.14259327,0.00019233,2]
[365077897,1749444647090,-204.09554578,0.00019233,2]
[365077899,1749444647101,-150.0,0.00019235,2]
[365077901,1749444647111,-150.0,0.00019246,2]
[365077903,1749444647120,-150.0,0.00019253,2]
[365077905,1749444647130,-208.0,0.00019272,2]
[365077907,1749444647139,-543.94811618,0.00019272,2]
[365077909,1749444647148,-161.85788235,0.0001928,2]
[365077911,1749444647158,-340.92137838,0.0001928,2]
[365077913,1749444647168,-327.70110294,0.0001928,2]
[365077915,1749444647177,-480.0,0.0001928,2]
[365077917,1749444647186,-480.0,0.0001928,2]
[365077919,1749444647195,-480.0,0.0001928,2]
[365077921,1749444647204,-480.54790911,0.0001928,2]
[365077938,1749444647213,-480.0,0.0001928,2]
[365077940,1749444647369,-250.0,0.0001928,2]
[365077942,1749444647379,-480.0,0.0001928,2]
[365077944,1749444647388,-480.0,0.0001928,2]
[365077946,1749444647398,-480.0,0.0001928,2]
[365077948,1749444647407,-480.0,0.0001928,2]
[365077950,1749444647417,-480.0,0.0001928,2]
[365077951,1749444647427,-480.0,0.0001928,2]
[365077953,1749444647437,-480.0,0.0001928,2]
[365077956,1749444647448,-480.0,0.0001928,2]
[365077958,1749444647459,-563.35157903,0.0001928,2]
[365077959,1749444647470,-480.0,0.0001928,2]
[365077961,1749444647479,-240.84683767,0.0001928,2]
[365077963,1749444647489,-480.0,0.0001928,2]
[365077965,1749444647499,-480.0,0.0001928,2]
[365077967,1749444647508,-480.0,0.0001928,2]
[365077969,1749444647518,-480.0,0.0001928,2]
[365077971,1749444647530,-480.0,0.0001928,2]
[365077973,1749444647540,-480.0,0.0001928,2]
[365077975,1749444647549,-480.0,0.0001928,2]
[365077977,1749444647559,-480.0,0.0001928,2]
[365077979,1749444647568,-480.0,0.0001928,2]
[365077981,1749444647578,-480.0,0.0001928,2]
[365077983,1749444647588,-480.0,0.0001928,2]
[365077985,1749444647597,-546.9,0.0001928,2]
[365077987,1749444647606,-480.0,0.0001928,2]
[365077989,1749444647616,-480.0,0.0001928,2]
[365077991,1749444647625,-480.0,0.0001928,2]
[365077993,1749444647634,-480.0,0.0001928,2]
[365077995,1749444647643,-541.19683531,0.0001928,2]
[365077997,1749444647652,-480.0,0.0001928,2]
[365077999,1749444647661,-480.0,0.0001928,2]
[365078001,1749444647672,-480.0,0.0001928,2]
[365078003,1749444647681,-480.0,0.0001928,2]
[365078005,1749444647691,-480.0,0.0001928,2]
[365078006,1749444647701,-480.0,0.0001928,2]
[365078009,1749444647711,-480.0,0.0001928,2]
[365078010,1749444647720,-480.0,0.0001928,2]
[365078012,1749444647730,-810.24,0.0001928,2]
[365078014,1749444647740,-480.0,0.0001928,2]
[365078016,1749444647750,-7506.04,0.0001928,2]
[365078018,1749444647760,-480.0,0.0001928,2]
[365078020,1749444647770,-10225.0,0.0001928,2]
[365078022,1749444647779,-390.63482881,0.0001928,2]
[365078024,1749444647789,-550.51,0.0001928,2]
[365078026,1749444647799,-480.0,0.0001928,2]
[365078028,1749444647808,-480.0,0.0001928,2]
[365078030,1749444647818,-686.19,0.0001928,2]
[365078032,1749444647827,-2752.27945228,0.00019284,2]
[365078039,1749444647886,-248.13630609,0.00019284,2]
[365078041,1749444647896,-91.78950379,0.00019297,2]
[365078053,1749444648002,-383.20020393,0.00018951,2]
[365078082,1749444648276,-90.83979607,0.00018951,2]
[365078084,1749444648285,-329.16020393,0.00018951,2]
[365078086,1749444648301,-150.83979607,0.00018951,2]
[365078088,1749444648311,-460.0,0.00018951,2]
[365078090,1749444648320,-354.46,0.00018986,2]
[365078092,1749444648330,-170.66,0.00018986,2]
[365078094,1749444648339,-480.0,0.00019051,2]
[365078096,1749444648348,-480.0,0.00019116,2]
[365078098,1749444648357,-480.0,0.00019216,2]
[365078100,1749444648367,-986.21049621,0.00019297,2]
[365078102,1749444648376,-167.74683781,0.000193,2]
[365078104,1749444648385,-4001.42816871,0.000193,2]
[365078130,1749444648728,-480.0,0.0001928,2]
[365078132,1749444648739,-243.73,0.000193,2]
[365078134,1749444648751,-9572.84360488,0.000193,2]
[365078136,1749444648760,-162.70515931,0.000193,2]
[365078138,1749444648770,-150.0,0.00019311,2]
[365078140,1749444648780,-150.0,0.00019311,2]
[365078142,1749444648791,-296.18882563,0.00019312,2]
[365078144,1749444648800,-2000.0,0.00019315,2]
[365078146,1749444648810,-1000.0,0.00019315,5]
[365078148,1749444648819,-442.52414155,0.00019316,2]
[365078150,1749444648829,-566.5893807,0.00019316,2]
[365078152,1749444648839,-440.0,0.00019316,2]
[365078154,1749444648848,-440.0,0.00019316,2]
[365078155,1749444648857,-506.90249519,0.00019316,2]
[365078157,1749444648866,-282.48063569,0.00019316,2]
[365078159,1749444648876,-440.88683018,0.00019316,2]
[365078161,1749444648885,-480.0,0.00019316,2]
[365078163,1749444648895,-440.0,0.00019316,2]
[365078165,1749444648904,-442.80047405,0.00019316,2]
[365078167,1749444648914,-480.0,0.00019316,2]
[365078169,1749444648923,-150.0,0.00019318,2]
[365078171,1749444648933,-13518.60587176,0.00019327,2]
[365078173,1749444648942,-3000.41575837,0.00019367,2]
[365078175,1749444648951,-208.0,0.0001937,2]
[365078177,1749444648961,-207.0,0.0001937,2]
[365078179,1749444648971,-156.30822705,0.0001937,2]
[365078180,1749444648981,-500.0,0.00019372,2]
[365078182,1749444648991,-500.0,0.00019373,2]
[365078185,1749444649001,-500.0,0.00019373,2]
[365078186,1749444649011,-639.23661763,0.00019379,2]
[365078188,1749444649020,-480.0,0.00019379,2]
[365078191,1749444649030,-480.0,0.00019379,2]
[365078193,1749444649039,-480.0,0.00019379,2]
[365078194,1749444649048,-782.35,0.00019379,2]
[365078196,1749444649057,-480.0,0.00019379,2]
[365078198,1749444649067,-480.0,0.00019379,2]
[365078200,1749444649077,-480.0,0.00019379,2]
[365078202,1749444649086,-480.0,0.00019379,2]
[365078204,1749444649096,-1325.44,0.00019379,2]
[365078206,1749444649106,-271.31752533,0.00019379,2]
[365078208,1749444649116,-480.0,0.00019379,2]
[365078210,1749444649126,-480.0,0.00019379,2]
[365078212,1749444649135,-2699.53,0.00019379,2]
[365078214,1749444649145,-480.0,0.00019379,2]
[365078216,1749444649154,-860.15,0.00019379,2]
[365078218,1749444649163,-280.18775273,0.0001938,2]
[365078220,1749444649172,-397.83668786,0.0001938,2]
[365078222,1749444649181,-480.0,0.0001938,2]
[365078224,1749444649191,-480.0,0.0001938,2]
[365078226,1749444649200,-480.0,0.0001938,2]
[365078228,1749444649209,-480.0,0.0001938,2]
[365078230,1749444649219,-480.0,0.0001938,2]
[365078232,1749444649228,-480.0,0.0001938,2]
[365078234,1749444649237,-480.0,0.0001938,2]
[365078236,1749444649247,-480.0,0.0001938,2]
[365078237,1749444649256,-481.94569425,0.0001938,2]
[365078239,1749444649266,-480.0,0.0001938,2]
[365078241,1749444649276,-480.0,0.0001938,2]
[365078244,1749444649287,-482.29765051,0.0001938,2]
[365078245,1749444649297,-432.50963454,0.0001938,2]
[365078247,1749444649306,-480.0,0.0001938,2]
[365078249,1749444649315,-480.0,0.0001938,2]
[365078251,1749444649324,-480.0,0.0001938,2]
[365078253,1749444649334,-480.0,0.0001938,2]
[365078255,1749444649344,-480.0,0.0001938,2]
[365078257,1749444649353,-393.9077413,0.0001938,2]
[365078259,1749444649362,-480.0,0.0001938,2]
[365078261,1749444649371,-219.45095072,0.0001938,2]
[365078263,1749444649384,-260.54904928,0.0001938,2]
[365078265,1749444649393,-631.47,0.0001938,2]
[365078267,1749444649403,-480.0,0.0001938,2]
[365078269,1749444649412,-480.0,0.0001938,2]
[365078271,1749444649421,-174.92295749,0.0001938,2]
[365078273,1749444649432,-269.24704914,0.0001938,2]
[365078275,1749444649444,-35.82999337,0.0001938,2]
[365078277,1749444649457,-480.0,0.0001938,2]
[365078279,1749444649466,-480.0,0.0001938,2]
[365078281,1749444649475,-480.0,0.0001938,2]
[365078283,1749444649485,-350.73411345,0.0001938,2]
[365078285,1749444649498,-129.26588655,0.0001938,2]
[365078288,1749444649507,-656.85,0.0001938,2]
[365078289,1749444649517,-480.0,0.0001938,2]
[365078292,1749444649529,-480.0,0.0001938,2]
[365078293,1749444649539,-480.0,0.0001938,2]
[365078295,1749444649547,-480.0,0.0001938,2]
[365078297,1749444649557,-480.0,0.0001938,2]
[365078299,1749444649566,-480.0,0.0001938,2]
[365078301,1749444649575,-33.34516384,0.0001938,2]
[365078305,1749444649599,-161.45013076,0.00019169,2]
[365078307,1749444649609,-216.98515797,0.0001938,2]
[365078309,1749444649622,-229.66967819,0.0001938,2]
[365078311,1749444649632,-462.50070536,0.0001938,2]
[365078316,1749444649675,151.0,0.00017039,2]
[365078762,1749444735682,1100.0,0.0001178,2]
[365078763,1749444737270,1100.0,0.0001315,2]
[365078764,1749444739371,1100.0,0.0001452,2]
[365078765,1749444741568,1100.0,0.0001589,2]
[365078768,1749444882482,150.0,0.00017054,2]
[365078770,1749444945492,237.17,0.00013699,2]
[365078772,1749444967710,284.13416154,0.0001601,2]
[365078773,1749444967734,588.91583846,0.0001601,2]
[365078774,1749444971643,1200.0,0.0001178,2]
[365078775,1749444973211,1200.0,0.0001315,2]
[365078776,1749444974799,1200.0,0.0001452,2]
[365078777,1749444976381,1200.0,0.0001589,2]
[365078779,1749445122766,151.0,0.00016981,2]
[365078781,1749445129745,151.0,0.00016976,2]
[365078782,1749445139463,151.0,0.00016974,2]
[365078784,1749445241343,1471.0,0.000162,14]
[365078803,1749445828469,687.08416154,0.000162,14]
[365078804,1749445828492,1312.91583846,0.000162,14]
[365078806,1749445832076,-150.0,0.000171,2]
[365078807,1749445832086,-160.17040042,0.00017186,2]
[365078808,1749445832132,-89.82959958,0.00017186,2]
[365078809,1749445832142,-208.0,0.00017272,2]
[365078810,1749445832151,-250.0,0.00017508,2]
[365078811,1749445832161,-468.25219034,0.00017733,2]
[365078812,1749445832173,-531.74780966,0.00017733,2]
[365078813,1749445832183,-733.21061354,0.00017733,2]
[365078814,1749445832243,-771.16938646,0.00017733,2]
[365078815,1749445832253,-157.27425376,0.00017737,2]
[365078816,1749445832279,-1042.72574624,0.00017737,2]
[365078817,1749445832288,-164.23,0.00017738,2]
[365078818,1749445832298,-150.0,0.00017884,7]
[365078819,1749445832307,-251.00523119,0.00017891,2]
[365078822,1749445838144,-48.99476881,0.00017891,2]
[365078823,1749445838154,-3584.83,0.00017892,2]
[365078824,1749445838163,-204.09554578,0.000179,2]
[365078825,1749445838174,-250.0,0.00018003,2]
[365078826,1749445838184,-336.2,0.00018178,2]
[365078827,1749445838193,-705.83,0.00018178,2]
[365078828,1749445838203,-201.0,0.00018273,2]
[365078829,1749445838213,-873.05,0.00018274,2]
[365078830,1749445838223,-170.66,0.00018378,2]
[365078831,1749445838232,-354.46,0.00018378,2]
[365078832,1749445838241,-204.09554578,0.00018567,2]
[365078833,1749445838251,-150.53,0.00018625,2]
[365078834,1749445838260,-1200.0,0.0001863,2]
[365078835,1749445838269,-1460.83,0.0001863,2]
[365078836,1749445838278,-207.4,0.00018689,2]
[365078837,1749445838287,-150.0,0.000187,2]
[365078838,1749445838296,-221.67,0.000187,2]
[365078839,1749445838306,-159.35413963,0.000187,2]
[365079086,1749445840453,-272.68843965,0.000187,2]
[365079090,1749445840468,-380.81282777,0.000187,2]
[365079102,1749445840522,-302.0,0.000187,2]
[365079619,1749445843295,-206.0,0.00017272,2]
[365079622,1749445843304,-727.975,0.000187,2]
[365079957,1749445846192,-8157.15959295,0.000187,2]
[365079958,1749445846201,-150.99,0.000187,2]
[365079959,1749445846210,-3680.03,0.000187,2]
[365079960,1749445846219,-9999.99,0.000187,2]
[365079961,1749445846229,-150.99,0.000187,2]
[365079962,1749445846238,-999.99,0.000187,2]
[365079963,1749445846248,-543.94811618,0.00018752,2]
[365079964,1749445846257,-2038.9868,0.00018752,2]
[365079965,1749445846267,-2082.8037,0.00018752,2]
[365079966,1749445846276,-1000.0,0.00018752,2]
[365079967,1749445846285,-2500.0,0.00018752,2]
[365079968,1749445846295,-250.0,0.0001881,2]
[365079969,1749445846304,-163.47,0.00018831,2]
[365079970,1749445846314,-151.0,0.00018841,2]
[365079971,1749445846323,-173.79581629,0.00018844,2]
[365079973,1749445846332,-585.1422113,0.0001885,2]
[365079975,1749445846341,-2369.1735,0.00018851,2]
[365079977,1749445846350,-480.0,0.00018851,2]
[365079979,1749445846365,-480.0,0.00018851,2]
[365079981,1749445846374,-480.0,0.00018851,2]
[365079983,1749445846383,-480.0,0.00018851,2]
[365079985,1749445846393,-480.0,0.00018851,2]
[365079986,1749445846403,-708.96,0.00018851,2]
[365079988,1749445846412,-6567.79,0.00018851,2]
[365079990,1749445846421,-435.00711968,0.00018851,2]
[365079992,1749445846431,-8946.88,0.00018851,2]
[365079994,1749445846442,-480.0,0.00018851,2]
[365079996,1749445846452,-480.0,0.00018851,2]
[365079998,1749445846461,-480.0,0.00018851,2]
[365080000,1749445846471,-614.26,0.00018851,2]
[365080002,1749445846480,-486.91,0.00018851,2]
[365080004,1749445846490,-480.0,0.00018851,2]
[365080006,1749445846500,-480.0,0.00018851,2]
[365080008,1749445846511,-1050.89,0.00018851,2]
[365080010,1749445846521,-576.54,0.00018851,2]
[365080012,1749445846531,-600.42,0.00018851,2]
[365080014,1749445846540,-480.0,0.00018851,2]
[365080016,1749445846550,-480.0,0.00018851,2]
[365080018,1749445846559,-480.0,0.00018851,2]
[365080020,1749445846569,-480.0,0.00018851,2]
[365080021,1749445846578,-480.0,0.00018851,2]
[365080023,1749445846587,-460.0,0.00018851,2]
[365080025,1749445846596,-480.0,0.00018851,2]
[365080027,1749445846605,-480.0,0.00018851,2]
[365080029,1749445846615,-500.0,0.00018851,2]
[365080031,1749445846623,-659.88,0.00018851,2]
[365080033,1749445846632,-580.28,0.00018851,2]
[365080035,1749445846642,-464.72850283,0.00018851,2]
[365080037,1749445846651,-500.0,0.00018852,2]
[365080039,1749445846660,-39319.98464079,0.00018852,2]
[365080042,1749445846685,-76642.09377778,0.00018852,2]
[365080045,1749445846707,-5987.04338044,0.00018852,2]
[365080047,1749445846719,-32227.71557264,0.00018852,2]
[365080111,1749445893473,235.72,0.00013699,2]
[365080114,1749445986797,700.0,0.00012876,2]
[365080115,1749445988387,700.0,0.00014246,2]
[365080116,1749445989990,242.84261399,0.00015616,2]
[365080117,1749445990014,457.15738601,0.00015616,2]
[365080118,1749445991628,700.0,0.00016986,2]
[365080138,1749446213324,867.81,0.00015784,2]
[365080141,1749446499018,601.0,0.00016,30]
[365080146,1749446679713,-1004.51,0.000199,120]
[365080150,1749446924915,1859.60106268,0.00013368,2]
[365080167,1749447032203,-1133.93,0.00017453,2]
[365080169,1749447032213,-250.0,0.00017485,2]
[365080171,1749447032224,-250.0,0.00017518,2]
[365080173,1749447032233,-184.27905408,0.00017525,2]
[365080175,1749447032243,-967.32,0.00017542,2]
[365080177,1749447032254,-200.0,0.00017564,2]
[365080178,1749447032265,-1000.0,0.00017575,2]
[365080179,1749447032276,-2228.45,0.00017626,2]
[365080180,1749447032286,-1200.0,0.00017658,2]
[365080181,1749447032296,-300.0,0.00017658,2]
[365080182,1749447032305,-683.1140462,0.00017659,2]
[365080183,1749447032322,-12687.4859538,0.00017659,2]
[365080184,1749447032331,-1632.95100695,0.00017774,2]
[365080185,1749447032351,-588.45980315,0.00017774,2]
[365080186,1749447032363,-529.5891899,0.00017774,2]
[365080187,1749447032373,-207.0,0.00017833,2]
[365080188,1749447032383,-633.36079969,0.00017903,2]
[365080189,1749447032399,-1020.53920031,0.00017903,2]
[365080190,1749447032409,-2912.2,0.00017918,2]
[365080191,1749447032419,-832.21788049,0.00018,2]
[365080192,1749447032534,-369.81420894,0.00018,2]
[365080193,1749447032545,-212.40634407,0.00018,2]
[365080194,1749447032599,-1.87365593,0.00018,2]
[365080195,1749447032609,-461.18,0.00018,2]
[365080196,1749447032618,-461.18,0.00018,2]
[365080197,1749447032628,-867.81,0.00018048,2]
[365080198,1749447032637,-306.06,0.00018093,2]
[365080199,1749447032647,-2143.51579027,0.00018093,2]
[365080227,1749447038211,-1480.54153096,0.00018093,2]
[365080228,1749447038224,-2160.32353516,0.00018093,2]
[365080229,1749447038236,-2208.90914361,0.00018093,2]
[365080230,1749447038248,-150.99,0.00018093,2]
[365080231,1749447038258,-341.06,0.000181,2]
[365080232,1749447038268,-300.79,0.000181,2]
[365080233,1749447038277,-407.51,0.000181,2]
[365080234,1749447038287,-169.72,0.000181,2]
[365080235,1749447038296,-461.18,0.000181,2]
[365080236,1749447038306,-151.0,0.00018198,2]
[365080237,1749447038315,-1957.856,0.00018198,2]
[365080238,1749447038324,-207.4,0.00018198,2]
[365080239,1749447038333,-242.14400001,0.00018253,2]
[365080240,1749447038343,-500.0,0.00018493,2]
[365080241,1749447038352,-288.92626208,0.000185,2]
[365080242,1749447038361,-165.26,0.00018564,2]
[365080243,1749447038371,-150.0,0.00018625,2]
[365080244,1749447038380,-150.0,0.00018625,2]
[365080245,1749447038389,-150.0,0.00018625,2]
[365080246,1749447038399,-150.0,0.00018625,2]
[365080247,1749447038409,-300.0,0.00018625,2]
[365080248,1749447038417,-150.0,0.000187,2]
[365080249,1749447038427,-150.0,0.000187,2]
[365080250,1749447038436,-160.01070883,0.00018751,2]
[365080253,1749447038637,-543.94811618,0.00018751,2]
[365080254,1749447038647,-5407.44234874,0.00018751,2]
[365080256,1749447038657,-500.0,0.00018752,2]
[365080258,1749447038667,-1000.0,0.00018752,2]
[365080259,1749447038676,-150.0,0.000188,2]
[365080261,1749447038685,-150.0,0.000188,2]
[365080263,1749447038694,-700.0,0.000188,6]
[365080265,1749447038704,-325.30995198,0.00018843,2]
[365080266,1749447038713,-19104.35514321,0.00018844,2]
[365080268,1749447038725,-776.46731493,0.00018844,2]
[365080271,1749447038740,-1981.37892474,0.00018844,2]
[365080334,1749447040323,-2478.76499987,0.00018844,2]
[365080353,1749447040545,-1050.38161684,0.00018844,2]
[365080365,1749447040712,-1187.81578441,0.00018844,2]
[365080368,1749447040725,-8256.83590993,0.00018844,2]
[365080467,1749447043318,-5250.1482,0.00018844,2]
[365080468,1749447043432,-2055.58485273,0.00018844,2]
[365080473,1749447046678,-570.093,0.00018844,2]
[365080539,1749447165716,223.93,0.00013699,2]
[365080541,1749447187824,341.86571285,0.00015962,2]
[365080542,1749447187852,461.23428715,0.00015962,2]
[365080544,1749447812044,431.69,0.00015,7]
[365080545,1749447994078,10000.0,0.00017052,2]
[365080546,1749448004127,10000.0,0.00017052,2]
[365080547,1749448012936,10000.0,0.00017052,2]
[365080548,1749448022547,10000.0,0.00017052,2]
[365080549,1749448039598,5793.77,0.00017052,2]
[365080550,1749448150006,212.73,0.00013699,2]
[365080552,1749448160879,762.94,0.0001581,2]
[365080556,1749448231441,-207.0,0.00017076,2]
[365080557,1749448231451,-916.18153849,0.00017621,2]
[365080558,1749448231462,-83.81846151,0.00017621,2]
[365080559,1749448231471,-483.66,0.00017663,2]
[365080560,1749448231480,-1341.82,0.00017666,2]
[365080561,1749448231489,-762.94,0.00018074,2]
[365080562,1749448231498,-151.0,0.0001821,2]
[365080563,1749448231508,-207.4,0.0001821,2]
[365080564,1749448231518,-561.83153849,0.00018212,2]
[365080565,1749448231529,-380.44131823,0.00018212,2]
[365080566,1749448231539,-300.27,0.00018219,2]
[365080567,1749448231549,-1200.0,0.00018219,2]
[365080568,1749448231558,-302.96,0.00018219,2]
[365080569,1749448231567,-301.35,0.0001822,2]
[365080570,1749448231576,-304.21,0.0001822,2]
[365080571,1749448231585,-301.92,0.0001822,2]
[365080572,1749448231595,-300.03,0.0001822,2]
[365080573,1749448231604,-300.22,0.0001822,2]
[365080574,1749448231613,-303.74,0.0001822,2]
[365080575,1749448231623,-207.14,0.0001822,2]
[365080576,1749448231633,-300.18,0.0001822,2]
[365080577,1749448231642,-301.15,0.0001822,2]
[365080578,1749448231652,-500.0,0.00018221,2]
[365080579,1749448231662,-500.0,0.00018221,2]
[365080580,1749448231671,-500.0,0.00018221,2]
[365080581,1749448231681,-356.81227227,0.00018221,2]
[365080582,1749448231690,-500.0,0.00018221,2]
[365080583,1749448231700,-500.0,0.00018221,2]
[365080584,1749448231710,-500.0,0.00018221,2]
[365080585,1749448231719,-500.0,0.00018221,2]
[365080586,1749448231728,-500.0,0.00018221,2]
[365080587,1749448231737,-380.03493728,0.00018221,2]
[365080588,1749448231746,-500.0,0.00018221,2]
[365080590,1749448231755,-500.0,0.00018221,2]
[365080592,1749448231765,-397.86397354,0.00018221,2]
[365080594,1749448231774,-303.24,0.00018221,2]
[365080595,1749448231783,-29349.35511892,0.00018222,5]
[365080596,1749448231805,-939.82057194,0.00018222,5]
[365080607,1749448237419,-759.8695747,0.00018222,5]
[365080608,1749448237430,-527.65,0.00018222,5]
[365080609,1749448237532,-264.9824606,0.00018222,5]
[365080610,1749448237544,-8999.5401188,0.00018222,5]
[365080611,1749448237553,-1549.4598812,0.00018257,2]
[365080612,1749448237565,-243.85583737,0.00018257,2]
[365080613,1749448237574,-84.30115388,0.000183,2]
[365080821,1749448239995,-537.40183698,0.000183,2]
[365080823,1749448240004,-144.8049517,0.000183,2]
[365080958,1749448242537,-355.1950483,0.000183,2]
[365080959,1749448242546,-514.45051146,0.000183,2]
[365080960,1749448242556,-502.2138121,0.000183,2]
[365080961,1749448242564,-500.55509811,0.000183,2]
[365080962,1749448242574,-500.91665347,0.000183,2]
[365080963,1749448242584,-500.0,0.000183,2]
[365080964,1749448242594,-157.14624829,0.000183,2]
[365080965,1749448242603,-500.0,0.000183,2]
[365080966,1749448242614,-502.42167503,0.000183,2]
[365080967,1749448242626,-1078.0,0.00018527,2]
[365080968,1749448242635,-150.99,0.00018533,2]